fUST/lending_fUST_20240806
["ID","MTS","AMOUNT","RATE_DAILY","PERIOD"]
[334291060,1722908848200,-157.27198194,0.00016309,2]
[334291061,1722908848222,-175.52319682,0.00016532,2]
[334291062,1722908848244,-155.12858967,0.00016532,2]
[334291063,1722908848266,-259.19807663,0.00016532,2]
[334291064,1722908848287,-280.51515585,0.00016532,2]
[334291065,1722908848309,-155.00014725,0.00016532,2]
[334291066,1722908848330,-300.0,0.00017018,2]
[334291067,1722908848351,-823.17490438,0.00018999,2]
[334291068,1722908848379,-5157.00110244,0.00019477,2]
[334291069,1722908849116,-428.56285894,0.00019477,2]
[334291070,1722908850155,-357.60042248,0.00019477,2]
[334291071,1722908853383,-271.50419013,0.00019477,2]
[334291073,1722908933337,159.157315,0.00014247,2]
[334291075,1722908946104,-154.88961185,0.00018999,2]
[334291076,1722908946124,-816.39879119,0.00018999,2]
[334291077,1722908946145,-24091.51266587,0.00019045,2]
[334291078,1722908946165,-154.54409492,0.00019477,2]
[334291079,1722908946190,-617.61868583,0.00019547,2]
[334291080,1722908946210,-704.68134568,0.00019999,2]
[334291081,1722908946230,-344.626438,0.0002,2]
[334291082,1722908946250,-236.1786625,0.0002,2]
[334291083,1722908946272,-202.10795032,0.0002,2]
[334291084,1722908951131,-985.42230167,0.00019477,2]
[334291085,1722908951154,-1865.20968713,0.0002,2]
[334291086,1722908951176,-154.89138088,0.0002028,2]
[334291087,1722908951200,-160.128149,0.00020478,2]
[334291088,1722908951224,-160.128149,0.00020545,2]
[334291089,1722908951246,-160.128149,0.00020612,2]
[334291090,1722908951268,-160.128149,0.00020679,2]
[334291091,1722908951289,-194.05283789,0.00020721,2]
[334291092,1722908951311,-160.128149,0.00020745,2]
[334291093,1722908951333,-160.128149,0.00020812,2]
[334291094,1722908951356,-160.128149,0.00020879,2]
[334291095,1722908951379,-160.128149,0.00020945,2]
[334291096,1722908951401,-160.128149,0.00021012,2]
[334291097,1722908951423,-160.128149,0.00021079,2]
[334291098,1722908951446,-160.128149,0.00021145,2]
[334291099,1722908951469,-11053.4916907,0.00021165,2]
[334291100,1722908951492,-160.128149,0.00021212,2]
[334291101,1722908951514,-160.128149,0.00021279,2]
[334291102,1722908951536,-160.128149,0.00021345,2]
[334291103,1722908951558,-160.128149,0.00021412,2]
[334291104,1722908951581,-160.128149,0.00021479,2]
[334291105,1722908951602,-160.128149,0.00021545,2]
[334291106,1722908951623,-191.8456246,0.00021546,2]
[334291107,1722908951645,-222.40267076,0.00021916,2]
[334291108,1722908951667,-456.02261917,0.00021916,2]
[334291109,1722908951694,-510.41243711,0.0002217,2]
[334291110,1722908951716,-151.0,0.00023543,7]
[334291111,1722908951737,-200.0,0.00024658,15]
[334291112,1722908951760,-154.54409492,0.00025,2]
[334291113,1722908951781,-500.0,0.00025,30]
[334291114,1722908951816,-140.30419625,0.00025,30]
[334291115,1722908953286,-533.62513603,0.00019547,2]
[334291116,1722908953309,-54.69580375,0.00025,30]
[334291117,1722908953517,154.54409492,0.00021906,2]
[334291118,1722908962335,5.92286436,0.00019045,2]
[334291119,1722908962356,176.90776655,0.00019045,2]
[334291120,1722908962378,227.09506215,0.00019045,2]
[334291122,1722908974122,-20625.66189266,0.00019045,2]
[334291154,1722909033072,-3055.92508015,0.00019045,2]
[334291155,1722909033083,-165.64560173,0.00023608,2]
[334291156,1722909033093,-177.30815575,0.00023608,2]
[334291157,1722909033103,-155.1110025,0.00023608,2]
[334291158,1722909033113,-154.54409492,0.00025,2]
[334291159,1722909033124,-160.304134,0.00025405,2]
[334291160,1722909033134,-402.40869281,0.00026579,2]
[334291161,1722909033144,-161.06097637,0.00026589,2]
[334291162,1722909033153,-152.18,0.000266,31]
[334291163,1722909033163,-152.18,0.000266,31]
[334291164,1722909033172,-152.18,0.000266,31]
[334291165,1722909033181,-152.18,0.000266,31]
[334291166,1722909033191,-152.18,0.000266,31]
[334291167,1722909033201,-152.18,0.000266,31]
[334291168,1722909033213,-152.18,0.000266,31]
[334291169,1722909033223,-152.18,0.000266,31]
[334291170,1722909033233,-152.18,0.000266,31]
[334291171,1722909033242,-152.18,0.000266,31]
[334291172,1722909033252,-152.18,0.000266,31]
[334291173,1722909033262,-152.18,0.000266,31]
[334291174,1722909033271,-152.18,0.000266,31]
[334291175,1722909033281,-4053.69461207,0.00027,2]
[334291176,1722909033292,-620.02337672,0.00027499,2]
[334291177,1722909033302,-225.3181,0.0002795,30]
[334291178,1722909033311,-159.157315,0.00029589,2]
[334291179,1722909033321,-1996.92092655,0.000299,2]
[334291180,1722909033330,-394.45280815,0.000299,2]
[334291182,1722909033340,-150.5,0.0002997,120]
[334291183,1722909033350,-185.41,0.0002998,120]
[334291185,1722909033360,-150.5,0.0002998,120]
[334291186,1722909033369,-194.82,0.0002998,3]
[334291187,1722909033379,-3660.87484268,0.0002998,3]
[334291214,1722909038452,-4449.38515732,0.0002998,3]
[334291216,1722909038462,-6758.55,0.0002998,3]
[334291218,1722909038471,-5632.13,0.0002998,3]
[334291220,1722909038485,-500.0,0.00029989,2]
[334291222,1722909038496,-285.04812267,0.00029989,2]
[334291224,1722909038505,-363.27823658,0.00029989,2]
[334291226,1722909038514,-500.0,0.00029989,2]
[334291228,1722909038523,-500.0,0.00029989,2]
[334291230,1722909038533,-606.00483355,0.00029989,2]
[334291232,1722909038544,-500.0,0.00029989,2]
[334291234,1722909038553,-500.0,0.00029989,2]
[334291236,1722909038564,-500.0,0.00029989,2]
[334291238,1722909038574,-500.0,0.00029989,2]
[334291240,1722909038584,-500.0,0.00029989,2]
[334291242,1722909038594,-500.0,0.00029989,2]
[334291244,1722909038605,-500.0,0.00029989,2]
[334291246,1722909038614,-500.0,0.00029989,2]
[334291248,1722909038624,-450.0,0.00029989,2]
[334291250,1722909038634,-150.5,0.0002999,120]
[334291252,1722909038644,-150.5,0.0002999,120]
[334291254,1722909038654,-99305.922446,0.0002999,4]
[334291256,1722909038665,-171249.50204822,0.0003,2]
[334291258,1722909038675,-151.0,0.0003,120]
[334291260,1722909038684,-151.0,0.0003,120]
[334291262,1722909038695,-152.18,0.000305,31]
[334291264,1722909038706,-152.18,0.000305,31]
[334291265,1722909038717,-152.18,0.000305,31]
[334291266,1722909038727,-152.18,0.000305,31]
[334291268,1722909038744,-152.18,0.000305,31]
[334291270,1722909038754,-152.18,0.000305,31]
[334291271,1722909038764,-152.18,0.000305,31]
[334291272,1722909038773,-152.18,0.000305,31]
[334291273,1722909038783,-152.18,0.000305,31]
[334291274,1722909038792,-152.18,0.000305,31]
[334291275,1722909038802,-152.18,0.000305,31]
[334291276,1722909038812,-152.18,0.000305,31]
[334291277,1722909038821,-152.18,0.000305,31]
[334291278,1722909038830,-152.18,0.000305,31]
[334291279,1722909038839,-163.05263509,0.00031489,10]
[334291280,1722909038848,-151.0,0.00031808,120]
[334291281,1722909038858,-1996.92092653,0.000324,2]
[334291282,1722909038867,-151.0,0.00032603,120]
[334291283,1722909038877,-5259.60976186,0.00033418,2]
[334291284,1722909038887,-151.0,0.00033616,120]
[334291285,1722909038897,-152.18,0.000344,31]
[334291286,1722909038907,-152.18,0.000344,31]
[334291287,1722909038916,-152.18,0.000344,31]
[334291288,1722909038926,-152.18,0.000344,31]
[334291289,1722909038936,-152.18,0.000344,31]
[334291290,1722909038945,-152.18,0.000344,31]
[334291291,1722909038954,-152.18,0.000344,31]
[334291292,1722909038965,-152.18,0.000344,31]
[334291293,1722909038975,-152.18,0.000344,31]
[334291294,1722909038991,-152.18,0.000344,31]
[334291295,1722909039001,-152.18,0.000344,31]
[334291296,1722909039011,-152.18,0.000344,31]
[334291297,1722909039020,-152.18,0.000344,31]
[334291298,1722909039029,-152.18,0.000344,31]
[334291299,1722909039038,-1996.92092653,0.000349,2]
[334291300,1722909039048,-1094.83,0.0003499,7]
[334291301,1722909039057,-10064.50340488,0.00035,120]
[334291302,1722909039067,-356.52184278,0.00035,4]
[334291303,1722909039077,-284.89127157,0.00035,3]
[334291304,1722909039087,-151.0,0.00035205,120]
[334291305,1722909039097,-151.0,0.00035425,120]
[334291306,1722909039107,-160.304134,0.00036563,2]
[334291307,1722909039117,-283.15860309,0.000368,30]
[334291308,1722909039127,-151.0,0.00037233,120]
[334291309,1722909039137,-1996.92092653,0.00037399,2]
[334291310,1722909039147,-451.8826529,0.00037507,2]
[334291311,1722909039157,-1306.9102115,0.000377,120]
[334291312,1722909039167,-151.0,0.00037808,120]
[334291313,1722909039176,-150.654,0.00037945,2]
[334291314,1722909039185,-508.187,0.00037945,2]
[334291315,1722909039195,-1417.038,0.00037945,2]
[334291316,1722909039204,-313.0,0.00038,120]
[334291317,1722909039215,-152.18,0.000383,31]
[334291318,1722909039225,-152.18,0.000383,31]
[334291319,1722909039243,-152.18,0.000383,31]
[334291320,1722909039252,-152.18,0.000383,31]
[334291321,1722909039262,-152.18,0.000383,31]
[334291322,1722909039408,-152.18,0.000383,31]
[334291323,1722909039418,-152.18,0.000383,31]
[334291324,1722909039428,-152.18,0.000383,31]
[334291325,1722909039437,-152.18,0.000383,31]
[334291326,1722909039447,-152.18,0.000383,31]
[334291327,1722909039457,-152.18,0.000383,31]
[334291328,1722909039467,-152.18,0.000383,31]
[334291329,1722909039476,-152.18,0.000383,31]
[334291330,1722909039492,-152.18,0.000383,31]
[334291331,1722909039502,-151.0,0.00039041,120]
[334291332,1722909039511,-593.1931767,0.00039452,2]
[334291333,1722909039520,-210.5427304,0.00039452,2]
[334291334,1722909039529,-152.0,0.00039634,15]
[334291335,1722909039538,-2000.0,0.0003978,2]
[334291336,1722909039547,-460.12826561,0.000398,2]
[334291337,1722909039555,-152.0,0.00039827,15]
[334291338,1722909039565,-1555.76135604,0.00039879,56]
[334291339,1722909039574,-151.538831,0.0003988,14]
[334291340,1722909039583,-49652.961223,0.0003988,5]
[334291341,1722909039592,-60000.0,0.0003989,120]
[334291342,1722909039602,-151.0,0.0003989,14]
[334291343,1722909039611,-151.0,0.0003989,14]
[334291344,1722909039620,-151.598937,0.0003989,14]
[334291345,1722909039630,-151.0,0.0003989,14]
[334291346,1722909039639,-151.0,0.0003989,14]
[334291347,1722909039648,-151.0,0.0003989,14]
[334291348,1722909039658,-151.0,0.0003989,14]
[334291349,1722909039668,-232.370843,0.0003989,14]
[334291350,1722909039677,-151.0,0.0003989,14]
[334291351,1722909039686,-154.29401,0.0003989,14]
[334291352,1722909039696,-230.547094,0.0003989,14]
[334291353,1722909039705,-230.547094,0.0003989,14]
[334291354,1722909039717,-230.547094,0.0003989,14]
[334291355,1722909039726,-230.547094,0.0003989,14]
[334291356,1722909039742,-179.94702,0.0003989,14]
[334291357,1722909039752,-179.94702,0.0003989,14]
[334291358,1722909039762,-179.94702,0.0003989,14]
[334291359,1722909039772,-179.94702,0.0003989,14]
[334291360,1722909039781,-159.067684,0.0003989,14]
[334291361,1722909039791,-159.067684,0.0003989,14]
[334291362,1722909039801,-159.067684,0.0003989,14]
[334291363,1722909039811,-159.067684,0.0003989,14]
[334291364,1722909039821,-1550.686871,0.0003989,2]
[334291365,1722909039830,-1550.686871,0.0003989,2]
[334291366,1722909039839,-151.0,0.0003989,14]
[334291367,1722909039849,-391.819918,0.0003989,14]
[334291368,1722909039858,-151.0,0.0003989,14]
[334291369,1722909039867,-391.819918,0.0003989,14]
[334291370,1722909039877,-151.0,0.0003989,14]
[334291371,1722909039886,-2631.975926,0.0003989,14]
[334291372,1722909039895,-2631.975926,0.0003989,14]
[334291373,1722909039905,-611.299166,0.0003989,14]
[334291374,1722909039915,-611.299166,0.0003989,14]
[334291375,1722909039924,-277.635088,0.0003989,14]
[334291376,1722909039934,-277.635088,0.0003989,14]
[334291377,1722909039943,-785.729508,0.0003989,14]
[334291378,1722909039952,-24826.4806115,0.0003989,5]
[334291379,1722909039961,-785.729508,0.0003989,14]
[334291380,1722909039971,-153.034162,0.0003989,14]
[334291381,1722909039987,-151.0,0.0003989,14]
[334291382,1722909039996,-151.0,0.0003989,14]
[334291383,1722909040004,-151.0,0.0003989,14]
[334291384,1722909040013,-151.0,0.0003989,14]
[334291385,1722909040022,-151.911687,0.0003989,14]
[334291386,1722909040033,-151.0,0.0003989,14]
[334291387,1722909040042,-362.436004,0.0003989,14]
[334291388,1722909040052,-362.436004,0.0003989,14]
[334291389,1722909040061,-614.288024,0.0003989,14]
[334291390,1722909040072,-614.288024,0.0003989,14]
[334291391,1722909040084,-151.0,0.0003989,14]
[334291392,1722909040094,-1996.92092653,0.00039899,2]
[334291393,1722909040104,-33119.0,0.000399,120]
[334291394,1722909040113,-150.112233,0.000399,9]
[334291395,1722909040123,-151.0,0.000399,14]
[334291396,1722909040132,-151.0,0.000399,14]
[334291397,1722909040141,-151.0,0.000399,14]
[334291398,1722909040150,-151.0,0.000399,14]
[334291399,1722909040160,-151.0,0.000399,14]
[334291400,1722909040169,-230.547094,0.000399,14]
[334291401,1722909040179,-230.547094,0.000399,14]
[334291402,1722909040188,-179.94702,0.000399,14]
[334291403,1722909040197,-179.94702,0.000399,14]
[334291404,1722909040207,-159.067684,0.000399,14]
[334291405,1722909040216,-159.067684,0.000399,14]
[334291406,1722909040226,-1550.686871,0.000399,2]
[334291407,1722909040243,-1550.686871,0.000399,2]
[334291408,1722909040253,-151.0,0.000399,14]
[334291409,1722909040263,-151.0,0.000399,14]
[334291410,1722909040272,-391.819918,0.000399,14]
[334291411,1722909040282,-151.0,0.000399,14]
[334291412,1722909040292,-151.0,0.000399,14]
[334291413,1722909040302,-391.819918,0.000399,14]
[334291414,1722909040311,-151.0,0.000399,14]
[334291415,1722909040320,-151.0,0.000399,14]
[334291416,1722909040329,-2631.975926,0.000399,14]
[334291417,1722909040339,-2631.975926,0.000399,14]
[334291418,1722909040348,-2631.975926,0.000399,14]
[334291419,1722909040357,-2631.975926,0.000399,14]
[334291420,1722909040366,-611.299166,0.000399,14]
[334291421,1722909040376,-611.299166,0.000399,14]
[334291422,1722909040385,-611.299166,0.000399,14]
[334291423,1722909040394,-611.299166,0.000399,14]
[334291424,1722909040403,-277.635088,0.000399,14]
[334291425,1722909040413,-277.635088,0.000399,14]
[334291426,1722909040423,-785.729508,0.000399,14]
[334291427,1722909040432,-785.729508,0.000399,14]
[334291428,1722909040441,-151.0,0.000399,14]
[334291429,1722909040450,-151.0,0.000399,14]
[334291430,1722909040460,-151.0,0.000399,14]
[334291431,1722909040470,-151.0,0.000399,14]
[334291432,1722909040481,-151.0,0.000399,14]
[334291433,1722909040499,-362.436004,0.000399,14]
[334291434,1722909040508,-362.436004,0.000399,14]
[334291435,1722909040518,-614.288024,0.000399,14]
[334291436,1722909040527,-614.288024,0.000399,14]
[334291437,1722909040536,-151.0,0.000399,14]
[334291438,1722909040545,-3554.89,0.0003993,2]
[334291439,1722909040555,-3868.06043916,0.0003995,120]
[334291440,1722909040564,-24826.4806115,0.0003997,5]
[334291441,1722909040573,-10000.0,0.0003998,30]
[334291442,1722909040582,-276.0,0.0003998,42]
[334291443,1722909040592,-151.0,0.0003998,14]
[334291444,1722909040601,-151.0,0.0003998,14]
[334291445,1722909040610,-1550.686871,0.00039989,2]
[334291446,1722909040619,-1550.686871,0.00039989,2]
[334291447,1722909040629,-151.0,0.00039989,14]
[334291448,1722909040638,-391.819918,0.00039989,14]
[334291449,1722909040647,-151.0,0.00039989,14]
[334291450,1722909040657,-391.819918,0.00039989,14]
[334291451,1722909040666,-151.0,0.00039989,14]
[334291452,1722909040674,-2631.975926,0.00039989,14]
[334291453,1722909040683,-2631.975926,0.00039989,14]
[334291454,1722909040692,-611.299166,0.00039989,14]
[334291455,1722909040703,-611.299166,0.00039989,14]
[334291456,1722909040712,-277.635088,0.00039989,14]
[334291457,1722909040725,-277.635088,0.00039989,14]
[334291458,1722909040740,-785.729508,0.00039989,14]
[334291459,1722909040751,-785.729508,0.00039989,14]
[334291460,1722909040760,-151.0,0.00039989,14]
[334291461,1722909040769,-151.0,0.00039989,14]
[334291462,1722909040780,-151.0,0.00039989,14]
[334291463,1722909040790,-151.0,0.00039989,14]
[334291464,1722909040800,-258.894724,0.00039989,14]
[334291465,1722909040809,-362.436004,0.00039989,14]
[334291466,1722909040819,-362.436004,0.00039989,14]
[334291467,1722909040828,-614.288024,0.00039989,14]
[334291468,1722909040838,-614.288024,0.00039989,14]
[334291469,1722909040849,-151.0,0.00039989,14]
[334291470,1722909040858,-151.0,0.0003999,14]
[334291471,1722909040868,-152.875941,0.0003999,14]
[334291472,1722909040877,-205.732138,0.0003999,14]
[334291473,1722909040887,-151.0,0.0003999,14]
[334291474,1722909040896,-35872.56896711,0.0003999,5]
[334291475,1722909041115,-56.26907738,0.0003999,5]
[334291476,1722909041342,-309.36713253,0.0003999,5]
[334291477,1722909041355,-13414.75604598,0.0003999,5]
[334291478,1722909041365,-277.635088,0.00039999,14]
[334291479,1722909041375,-277.635088,0.00039999,14]
[334291480,1722909041385,-785.729508,0.00039999,14]
[334291481,1722909041395,-785.729508,0.00039999,14]
[334291482,1722909041406,-151.0,0.00039999,14]
[334291483,1722909041416,-151.0,0.00039999,14]
[334291484,1722909041425,-151.0,0.00039999,14]
[334291485,1722909041435,-151.0,0.00039999,14]
[334291486,1722909041445,-362.436004,0.00039999,14]
[334291487,1722909041454,-362.436004,0.00039999,14]
[334291488,1722909041465,-614.288024,0.00039999,14]
[334291489,1722909041474,-614.288024,0.00039999,14]
[334291490,1722909041491,-3864.646542,0.0004,2]
[334291491,1722909042934,-152.18,0.000266,31]
[334291492,1722909042943,-553.21713821,0.0004,2]
[334291493,1722909042955,-1540.46282919,0.0004,2]
[334291536,1722909043699,-280.57113165,0.0004,2]
[334291537,1722909043714,-5243.0,0.0004,2]
[334291541,1722909048969,-526.08072875,0.0004,2]
[334291542,1722909048982,-722.98055713,0.0004,2]
[334291543,1722909049000,-943.2101311,0.0004,2]
[334291544,1722909049082,-76.98836368,0.0004,2]
[334291547,1722909412126,160.304134,0.00014247,2]
[334291548,1722909460044,170.20661285,0.00014247,2]
[334291551,1722909654394,363.66750406,0.00015,2]
[334291553,1722909916317,159.157315,0.00014247,2]
[334291554,1722909944126,-182.10255551,0.00017269,2]
[334291555,1722910026153,-160.9926213,0.00017019,2]
[334291556,1722910026176,-194.58009581,0.00017269,2]
[334291557,1722910026197,-146.27018945,0.00017269,2]
[334291558,1722910033152,-583.12981055,0.00017269,2]
[334291559,1722910033175,-175.83070255,0.00017882,2]
[334291560,1722910033197,-262.55316192,0.00017882,2]
[334291561,1722910033220,-185.92403809,0.00017882,2]
[334291562,1722910033250,-154.96199077,0.00017882,2]
[334291563,1722910033272,-300.0,0.00018124,2]
[334291564,1722910033293,-61.15356289,0.00018124,2]
[334291566,1722910038112,-155.05321791,0.00017882,2]
[334291567,1722910038304,-238.84643711,0.00018124,2]
[334291568,1722910038334,-213.20218336,0.00018125,2]
[334291569,1722910038356,-403.49852083,0.00019547,2]
[334291570,1722910040114,-594.67735156,0.00017882,2]
[334291571,1722910040144,-349.80892341,0.00017882,2]
[334291572,1722910040165,-1997.33322748,0.00019547,2]
[334291573,1722910040186,-2463.52061842,0.00019547,2]
[334291574,1722910042097,-639.57713383,0.00019547,2]
[334291575,1722910085759,273.37336231,9.9e-05,2]
[334291576,1722910105715,154.85787917,0.00012,2]
[334291577,1722910123106,1214.13238162,0.00012,2]
[334291578,1722910123135,8612.58869511,0.00012,2]
[334291579,1722910145111,-180.51812913,0.00019547,2]
[334291580,1722910158122,-385.76908016,0.00019999,2]
[334291581,1722910162118,-8318.32792942,0.00019999,2]
[334291582,1722910162139,-463.56138814,0.00019999,2]
[334291583,1722910162162,-601.75787471,0.00019999,2]
[334291584,1722910162185,-470.88148729,0.00019999,2]
[334291585,1722910162206,-154.54409492,0.00019999,2]
[334291586,1722910162227,-158.94015425,0.0002,2]
[334291587,1722910162249,-569.69870399,0.0002028,2]
[334291588,1722910162269,-300.0,0.0002072,2]
[334291589,1722910162290,-154.54409492,0.00021011,2]
[334291590,1722910162311,-154.54409492,0.00021011,2]
[334291591,1722910162333,-176.24730842,0.00021906,2]
[334291592,1722910162354,-302.12393124,0.00022,2]
[334291593,1722910162374,-214.69062998,0.0002217,2]
[334291594,1722910162394,-308.94547164,0.0002222,2]
[334291595,1722910162417,-2395.4925593,0.00022597,2]
[334291596,1722910162437,-175.658981,0.00023211,2]
[334291597,1722910162459,-2405.1916293,0.00023434,2]
[334291598,1722910162481,-4.65378211,0.00024141,2]
[334291599,1722910164092,-519.71041987,0.00019999,2]
[334291600,1722910164115,-18.71726265,0.00024141,2]
[334291601,1722910208408,155.18362988,0.00014545,2]
[334291639,1722910232754,-197.28564424,0.00024141,2]
[334291641,1722910232764,-299.4439556,0.00025,2]
[334291643,1722910232773,-551.95769758,0.00025,30]
[334291645,1722910232784,-519.0,0.00025,30]
[334291647,1722910232793,-220.656689,0.00025399,2]
[334291649,1722910232803,-262.4111894,0.00026139,2]
[334291651,1722910232812,-176.52350552,0.00026575,2]
[334291653,1722910232821,-152.22,0.000266,31]
[334291655,1722910232831,-152.22,0.000266,31]
[334291657,1722910232840,-152.22,0.000266,31]
[334291659,1722910232849,-152.22,0.000266,31]
[334291661,1722910232859,-152.22,0.000266,31]
[334291663,1722910232868,-152.22,0.000266,31]
[334291665,1722910232877,-152.22,0.000266,31]
[334291667,1722910232887,-152.22,0.000266,31]
[334291669,1722910232897,-658.91424875,0.0002735,2]
[334291671,1722910232907,-160.304134,0.00027884,2]
[334291673,1722910232920,-520.52078144,0.00029261,2]
[334291675,1722910232935,-189.78411317,0.00029261,2]
[334291677,1722910232945,-151.0,0.0003,120]
[334291679,1722910232954,-151.0,0.0003,120]
[334291681,1722910232964,-152.22,0.000305,31]
[334291683,1722910232973,-152.22,0.000305,31]
[334291685,1722910232982,-152.22,0.000305,31]
[334291687,1722910232991,-152.22,0.000305,31]
[334291689,1722910233000,-152.22,0.000305,31]
[334291691,1722910233010,-152.22,0.000305,31]
[334291693,1722910233019,-152.22,0.000305,31]
[334291695,1722910233029,-152.22,0.000305,31]
[334291696,1722910233039,-1253.19581627,0.000314,5]
[334291697,1722910233178,-2868.52466684,0.000314,5]
[334291698,1722910239043,-500.0,0.00031399,2]
[334291699,1722910239053,-51.2438455,0.00031399,2]
[334291712,1722910240097,-546.34354359,0.00031399,2]
[334291714,1722910240107,-22051.07951689,0.000314,5]
[334291716,1722910240119,-9676.27,0.000314,6]
[334291718,1722910240129,-1662.55372649,0.000315,2]
[334291720,1722910240138,-232.2208571,0.00031507,120]
[334291722,1722910240149,-7820.14,0.00031576,3]
[334291724,1722910240158,-6516.78,0.00031576,3]
[334291726,1722910240169,-5430.65,0.00031576,3]
[334291728,1722910240179,-254.2947656,0.00031585,2]
[334291730,1722910240191,-199.53368587,0.00031585,2]
[334291732,1722910240201,-500.0,0.00031585,2]
[334291733,1722910240210,-500.0,0.00031585,2]
[334291734,1722910240219,-500.0,0.00031585,2]
[334291735,1722910240228,-500.0,0.00031585,2]
[334291736,1722910240237,-500.0,0.00031585,2]
[334291737,1722910240246,-639.20338348,0.00031585,2]
[334291738,1722910240256,-500.0,0.00031585,2]
[334291739,1722910240265,-500.0,0.00031585,2]
[334291740,1722910240276,-114669.4470323,0.00031586,30]
[334291741,1722910240285,-150.112233,0.000316,7]
[334291742,1722910240294,-151.0,0.00031863,120]
[334291743,1722910240303,-151.0,0.00032603,120]
[334291744,1722910240313,-1662.55372645,0.00033575,2]
[334291745,1722910240322,-151.0,0.00033726,120]
[334291747,1722910240332,-152.22,0.000344,31]
[334291748,1722910240341,-152.22,0.000344,31]
[334291750,1722910240350,-152.22,0.000344,31]
[334291752,1722910240359,-152.22,0.000344,31]
[334291753,1722910240370,-152.22,0.000344,31]
[334291754,1722910240379,-152.22,0.000344,31]
[334291755,1722910240389,-152.22,0.000344,31]
[334291756,1722910240398,-152.22,0.000344,31]
[334291757,1722910240408,-159.157315,0.00034703,2]
[334291758,1722910240420,-151.0,0.00035205,120]
[334291759,1722910240429,-151.0,0.00035589,120]
[334291760,1722910240439,-1662.55372645,0.0003565,2]
[334291761,1722910240449,-150.112233,0.000359,7]
[334291762,1722910240459,-150.654,0.00037313,2]
[334291763,1722910240468,-508.187,0.00037313,2]
[334291764,1722910240477,-151.0,0.00037452,120]
[334291765,1722910240487,-1662.55372645,0.00037725,2]
[334291766,1722910240496,-151.0,0.00037808,120]
[334291767,1722910240505,-1417.038,0.00038227,2]
[334291768,1722910240514,-152.22,0.000383,31]
[334291769,1722910240523,-152.22,0.000383,31]
[334291770,1722910240532,-152.22,0.000383,31]
[334291771,1722910240541,-152.22,0.000383,31]
[334291772,1722910240551,-152.22,0.000383,31]
[334291773,1722910240560,-152.22,0.000383,31]
[334291774,1722910240570,-152.22,0.000383,31]
[334291775,1722910240579,-152.22,0.000383,31]
[334291776,1722910240588,-500.0,0.00038356,20]
[334291777,1722910240597,-500.0,0.00038493,22]
[334291778,1722910240607,-150.16,0.00038601,2]
[334291779,1722910240616,-500.0,0.0003863,24]
[334291780,1722910240626,-500.0,0.00038767,26]
[334291781,1722910240635,-500.0,0.00038904,28]
[334291782,1722910240644,-500.0,0.00039041,30]
[334291783,1722910240654,-20163.8164903,0.00039168,5]
[334291784,1722910240663,-500.0,0.00039178,32]
[334291785,1722910240677,-153.0,0.00039178,2]
[334291786,1722910240692,-256.4400484,0.00039233,2]
[334291787,1722910240701,-500.0,0.00039315,34]
[334291788,1722910240710,-151.0,0.00039315,120]
[334291789,1722910240720,-207.0547247,0.0003937,2]